fUST/lending_fUST_20240822
["ID","MTS","AMOUNT","RATE_DAILY","PERIOD"]
[335544966,1724319047336,-500.0,0.00019178,2]
[335544969,1724319047348,-512.70363378,0.00019178,2]
[335544971,1724319047360,-500.0,0.00019178,2]
[335544973,1724319047370,-280.20519879,0.00019178,2]
[335544975,1724319047379,-500.0,0.00019178,2]
[335544977,1724319047388,-500.0,0.00019178,2]
[335544979,1724319047398,-500.0,0.00019178,2]
[335544981,1724319047408,-500.0,0.00019178,2]
[335544983,1724319047418,-500.0,0.00019178,2]
[335544985,1724319047428,-500.0,0.00019178,2]
[335544987,1724319047437,-500.0,0.00019178,2]
[335544989,1724319047447,-500.0,0.00019178,2]
[335544991,1724319047456,-150.3948424,0.00019178,2]
[335544993,1724319047466,-500.0,0.00019178,2]
[335544995,1724319047476,-500.0,0.00019178,2]
[335544997,1724319047487,-545.2,0.00019178,2]
[335544999,1724319047497,-510.03074239,0.00019178,2]
[335545002,1724319047508,-500.0,0.00019178,2]
[335545004,1724319047519,-500.0,0.00019178,2]
[335545006,1724319047530,-933.82,0.00019178,2]
[335545008,1724319047541,-501.92554284,0.00019178,2]
[335545010,1724319047553,-500.0,0.00019178,2]
[335545012,1724319047565,-500.0,0.00019178,2]
[335545014,1724319047574,-538.15,0.00019178,2]
[335545016,1724319047584,-500.0,0.00019178,2]
[335545018,1724319047593,-200.0,0.00019178,2]
[335545020,1724319047602,-500.0,0.00019178,2]
[335545022,1724319047612,-500.0,0.00019178,2]
[335545024,1724319047627,-929.32,0.00019178,2]
[335545026,1724319047636,-500.0,0.00019178,2]
[335545028,1724319047646,-500.0,0.00019178,2]
[335545030,1724319047655,-151.0,0.00019178,2]
[335545033,1724319047668,-151.0,0.00019178,2]
[335545035,1724319047679,-151.0,0.00019178,2]
[335545037,1724319047689,-500.0,0.00019178,2]
[335545039,1724319047699,-500.95745786,0.00019178,2]
[335545040,1724319047708,-500.0,0.00019178,2]
[335545042,1724319047717,-500.0,0.00019178,2]
[335545044,1724319047726,-151.0,0.00019178,2]
[335545046,1724319047736,-500.0,0.00019178,2]
[335545048,1724319047746,-151.0,0.00019178,2]
[335545051,1724319047756,-155.033255,0.00019178,2]
[335545053,1724319047765,-500.0,0.00019178,2]
[335545054,1724319047775,-151.0,0.00019178,2]
[335545056,1724319047784,-151.0,0.00019178,2]
[335545058,1724319047793,-193.002314,0.00019178,2]
[335545060,1724319047803,-500.0,0.00019178,2]
[335545062,1724319047812,-151.0,0.00019178,2]
[335545064,1724319047821,-151.0,0.00019178,2]
[335545067,1724319047837,-151.0,0.00019178,2]
[335545069,1724319047853,-500.0,0.00019178,2]
[335545071,1724319047863,-500.0,0.00019178,2]
[335545073,1724319047873,-500.0,0.00019178,2]
[335545075,1724319047884,-500.0,0.00019178,2]
[335545077,1724319047894,-804.73,0.00019178,2]
[335545079,1724319047904,-525.43873107,0.00019178,2]
[335545081,1724319047914,-500.0,0.00019178,2]
[335545084,1724319047924,-500.0,0.00019178,2]
[335545086,1724319047934,-500.0,0.00019178,2]
[335545088,1724319047944,-500.0,0.00019178,2]
[335545090,1724319047954,-500.0,0.00019178,2]
[335545092,1724319047964,-500.0,0.00019178,2]
[335545094,1724319047974,-500.0,0.00019178,2]
[335545096,1724319047983,-500.0,0.00019178,2]
[335545098,1724319047993,-582.62,0.00019178,2]
[335545100,1724319048003,-500.0,0.00019178,2]
[335545102,1724319048012,-505.09496888,0.00019178,2]
[335545104,1724319048022,-500.0,0.00019178,2]
[335545106,1724319048032,-151.0,0.00019178,2]
[335545108,1724319048042,-500.0,0.00019178,2]
[335545110,1724319048052,-500.0,0.00019178,2]
[335545112,1724319048062,-500.0,0.00019178,2]
[335545114,1724319048071,-500.0,0.00019178,2]
[335545117,1724319048081,-500.0,0.00019178,2]
[335545119,1724319048091,-500.0,0.00019178,2]
[335545121,1724319048100,-500.0,0.00019178,2]
[335545123,1724319048110,-500.0,0.00019178,2]
[335545125,1724319048120,-500.0,0.00019178,2]
[335545127,1724319048130,-500.0,0.00019178,2]
[335545129,1724319048140,-500.0,0.00019178,2]
[335545131,1724319048151,-500.0,0.00019178,2]
[335545133,1724319048161,-500.0,0.00019178,2]
[335545135,1724319048172,-500.0,0.00019178,2]
[335545137,1724319048182,-500.0,0.00019178,2]
[335545140,1724319048192,-500.0,0.00019178,2]
[335545142,1724319048202,-500.0,0.00019178,2]
[335545144,1724319048212,-500.0,0.00019178,2]
[335545146,1724319048222,-500.0,0.00019178,2]
[335545148,1724319048232,-500.0,0.00019178,2]
[335545150,1724319048243,-500.0,0.00019178,2]
[335545152,1724319048254,-500.0,0.00019178,2]
[335545154,1724319048264,-500.0,0.00019178,2]
[335545156,1724319048274,-500.0,0.00019178,2]
[335545159,1724319048284,-500.0,0.00019178,2]
[335545161,1724319048294,-1203.56,0.00019178,2]
[335545163,1724319048304,-500.0,0.00019178,2]
[335545165,1724319048313,-151.0,0.00019178,2]
[335545167,1724319048322,-151.0,0.00019178,2]
[335545169,1724319048332,-500.0,0.00019178,2]
[335545171,1724319048341,-500.0,0.00019178,2]
[335545173,1724319048351,-500.0,0.00019178,2]
[335545175,1724319048360,-500.0,0.00019178,2]
[335545177,1724319048370,-153.684269,0.00019178,2]
[335545179,1724319048379,-151.0,0.00019178,2]
[335545181,1724319048389,-151.0,0.00019178,2]
[335545183,1724319048399,-500.0,0.00019178,2]
[335545185,1724319048408,-501.91963633,0.00019178,2]
[335545187,1724319048418,-500.0,0.00019178,2]
[335545189,1724319048427,-500.0,0.00019178,2]
[335545191,1724319048437,-500.0,0.00019178,2]
[335545193,1724319048446,-2321.68,0.00019178,2]
[335545195,1724319048456,-500.47628411,0.00019178,2]
[335545197,1724319048465,-500.0,0.00019178,2]
[335545199,1724319048475,-500.0,0.00019178,2]
[335545201,1724319048484,-500.0,0.00019178,2]
[335545203,1724319048494,-500.0,0.00019178,2]
[335545205,1724319048503,-500.0,0.00019178,2]
[335545207,1724319048513,-500.0,0.00019178,2]
[335545209,1724319048522,-368.92669393,0.00019178,2]
[335545211,1724319048532,-502.67386454,0.00019178,2]
[335545214,1724319048543,-500.0,0.00019178,2]
[335545216,1724319048554,-500.0,0.00019178,2]
[335545218,1724319048565,-500.0,0.00019178,2]
[335545220,1724319048574,-500.0,0.00019178,2]
[335545222,1724319048584,-501.24450449,0.00019178,2]
[335545224,1724319048594,-500.0,0.00019178,2]
[335545226,1724319048604,-507.26586184,0.00019178,2]
[335545228,1724319048614,-154.747342,0.00019178,2]
[335545231,1724319048627,-500.0,0.00019178,2]
[335545233,1724319048637,-626.8,0.00019178,2]
[335545235,1724319048647,-500.0,0.00019178,2]
[335545237,1724319048658,-500.0,0.00019178,2]
[335545239,1724319048669,-503.24036941,0.00019178,2]
[335545241,1724319048679,-500.0,0.00019178,2]
[335545243,1724319048688,-501.51235908,0.00019178,2]
[335545245,1724319048700,-500.0,0.00019178,2]
[335545247,1724319048709,-685.17,0.00019178,2]
[335545249,1724319048720,-500.0,0.00019178,2]
[335545251,1724319048729,-500.0,0.00019178,2]
[335545252,1724319048739,-500.0,0.00019178,2]
[335545253,1724319048748,-500.0,0.00019178,2]
[335545254,1724319048758,-500.0,0.00019178,2]
[335545255,1724319048767,-500.0,0.00019178,2]
[335545256,1724319048777,-500.0,0.00019178,2]
[335545257,1724319048787,-558.13,0.00019178,2]
[335545258,1724319048796,-160.11384194,0.00019178,2]
[335545259,1724319048806,-503.25808277,0.00019178,2]
[335545260,1724319048815,-500.0,0.00019178,2]
[335545261,1724319048825,-528.85674426,0.00019178,2]
[335545263,1724319048835,-586.53658666,0.00019178,2]
[335545264,1724319048844,-500.0,0.00019178,2]
[335545266,1724319048855,-508.56,0.00019178,2]
[335545268,1724319048864,-508.56,0.00019178,2]
[335545270,1724319048874,-508.56,0.00019178,2]
[335545272,1724319048883,-500.0,0.00019178,2]
[335545274,1724319048893,-508.56,0.00019178,2]
[335545276,1724319048904,-508.56,0.00019178,2]
[335545279,1724319048915,-508.56,0.00019178,2]
[335545281,1724319048925,-508.56,0.00019178,2]
[335545283,1724319048934,-508.56,0.00019178,2]
[335545285,1724319048944,-500.0,0.00019178,2]
[335545287,1724319048953,-508.56,0.00019178,2]
[335545289,1724319048963,-508.56,0.00019178,2]
[335545291,1724319048973,-508.56,0.00019178,2]
[335545293,1724319048982,-508.56,0.00019178,2]
[335545295,1724319048992,-508.56,0.00019178,2]
[335545297,1724319049002,-500.0,0.00019178,2]
[335545299,1724319049013,-508.56,0.00019178,2]
[335545301,1724319049024,-508.56,0.00019178,2]
[335545303,1724319049034,-508.56,0.00019178,2]
[335545305,1724319049043,-508.56,0.00019178,2]
[335545307,1724319049053,-508.56,0.00019178,2]
[335545309,1724319049063,-508.56,0.00019178,2]
[335545311,1724319049073,-508.56,0.00019178,2]
[335545313,1724319049083,-508.56,0.00019178,2]
[335545315,1724319049092,-508.56,0.00019178,2]
[335545317,1724319049102,-508.56,0.00019178,2]
[335545319,1724319049112,-508.756219,0.00019178,2]
[335545321,1724319049121,-500.0,0.00019178,2]
[335545323,1724319049131,-151.0,0.00019178,2]
[335545325,1724319049141,-151.0,0.00019178,2]
[335545327,1724319049152,-151.0,0.00019178,2]
[335545330,1724319049163,-500.0,0.00019178,2]
[335545332,1724319049174,-500.0,0.00019178,2]
[335545334,1724319049184,-500.0,0.00019178,2]
[335545336,1724319049194,-500.0,0.00019178,2]
[335545338,1724319049204,-500.0,0.00019178,2]
[335545340,1724319049214,-500.0,0.00019178,2]
[335545342,1724319049224,-500.0,0.00019178,2]
[335545344,1724319049234,-500.0,0.00019178,2]
[335545346,1724319049244,-1886.61,0.00019178,2]
[335545348,1724319049255,-511.01767285,0.00019178,2]
[335545350,1724319049264,-500.0,0.00019178,2]
[335545352,1724319049274,-500.0,0.00019178,2]
[335545354,1724319049284,-500.0,0.00019178,2]
[335545356,1724319049294,-503.10008164,0.00019178,2]
[335545358,1724319049303,-500.0,0.00019178,2]
[335545360,1724319049312,-500.0,0.00019178,2]
[335545362,1724319049322,-500.0,0.00019178,2]
[335545364,1724319049332,-500.0,0.00019178,2]
[335545366,1724319049342,-500.0,0.00019178,2]
[335545368,1724319049351,-500.0,0.00019178,2]
[335545370,1724319049361,-500.0,0.00019178,2]
[335545372,1724319049371,-500.0,0.00019178,2]
[335545374,1724319049381,-500.0,0.00019178,2]
[335545376,1724319049390,-500.0,0.00019178,2]
[335545378,1724319049400,-500.0,0.00019178,2]
[335545402,1724319049612,-500.0,0.00019178,2]
[335545404,1724319049626,-500.0,0.00019178,2]
[335545406,1724319049636,-519.76162396,0.00019178,2]
[335545409,1724319049645,-525.71,0.00019178,2]
[335545411,1724319049655,-515.19,0.00019178,2]
[335545412,1724319049664,-500.0,0.00019178,2]
[335545415,1724319049676,-500.0,0.00019178,2]
[335545417,1724319049685,-500.0,0.00019178,2]
[335545418,1724319049695,-500.0,0.00019178,2]
[335545419,1724319049704,-500.0,0.00019178,2]
[335545420,1724319049714,-500.0,0.00019178,2]
[335545421,1724319049724,-500.0,0.00019178,2]
[335545423,1724319049734,-520.58,0.00019178,2]
[335545424,1724319049745,-594.42,0.00019178,2]
[335545425,1724319049755,-500.0,0.00019178,2]
[335545426,1724319049765,-522.45373694,0.00019178,2]
[335545427,1724319049775,-500.0,0.00019178,2]
[335545428,1724319049786,-151.0,0.00019178,2]
[335545429,1724319049796,-153.129118,0.00019178,2]
[335545430,1724319049805,-500.0,0.00019178,2]
[335545431,1724319049815,-500.0,0.00019178,2]
[335545432,1724319049825,-500.0,0.00019178,2]
[335545433,1724319049835,-1475.8,0.00019178,2]
[335545434,1724319049845,-500.0,0.00019178,2]
[335545435,1724319049855,-500.0,0.00019178,2]
[335545437,1724319049866,-695.45,0.00019178,2]
[335545439,1724319049875,-500.0,0.00019178,2]
[335545441,1724319049885,-151.0,0.00019178,2]
[335545443,1724319049894,-151.0,0.00019178,2]
[335545445,1724319049904,-500.0,0.00019178,2]
[335545447,1724319049914,-500.0,0.00019178,2]
[335545449,1724319049925,-500.0,0.00019178,2]
[335545451,1724319049935,-834.79,0.00019178,2]
[335545453,1724319049946,-500.0,0.00019178,2]
[335545455,1724319049956,-500.0,0.00019178,2]
[335545457,1724319049967,-500.0,0.00019178,2]
[335545459,1724319049976,-500.0,0.00019178,2]
[335545461,1724319049986,-500.0,0.00019178,2]
[335545463,1724319049995,-500.0,0.00019178,2]
[335545465,1724319050005,-500.0,0.00019178,2]
[335545467,1724319050015,-500.0,0.00019178,2]
[335545469,1724319050024,-500.0,0.00019178,2]
[335545470,1724319050036,-151.0,0.00019178,2]
[335545472,1724319050047,-500.0,0.00019178,2]
[335545474,1724319050057,-510.13872314,0.00019178,2]
[335545476,1724319050067,-350.0,0.00019178,2]
[335545478,1724319050078,-500.0,0.00019178,2]
[335545480,1724319050087,-500.0,0.00019178,2]
[335545482,1724319050096,-500.0,0.00019178,2]
[335545484,1724319050106,-500.0,0.00019178,2]
[335545486,1724319050115,-151.0,0.00019178,2]
[335545488,1724319050124,-151.0,0.00019178,2]
[335545490,1724319050134,-151.0,0.00019178,2]
[335545492,1724319050144,-582.72,0.00019178,2]
[335545494,1724319050153,-500.0,0.00019178,2]
[335545496,1724319050162,-414.51613298,0.00019178,2]
[335545500,1724319050190,-727.94,0.00019178,2]
[335545502,1724319050199,-207.08036975,0.00019178,2]
[335545504,1724319050208,-500.0,0.00019178,2]
[335545506,1724319050219,-649.766261,0.00019178,2]
[335545508,1724319050228,-649.766261,0.00019178,2]
[335545510,1724319050237,-649.766261,0.00019178,2]
[335545512,1724319050248,-500.0,0.00019178,2]
[335545514,1724319050258,-649.766261,0.00019178,2]
[335545516,1724319050267,-1985.04,0.00019178,2]
[335545518,1724319050278,-500.0,0.00019178,2]
[335545520,1724319050287,-500.0,0.00019178,2]
[335545522,1724319050296,-500.0,0.00019178,2]
[335545525,1724319050306,-2180.8,0.00019178,2]
[335545527,1724319050315,-599.43,0.00019178,2]
[335545529,1724319050325,-500.0,0.00019178,2]
[335545531,1724319050334,-500.0,0.00019178,2]
[335545533,1724319050343,-500.0,0.00019178,2]
[335545535,1724319050352,-500.0,0.00019178,2]
[335545537,1724319050361,-500.0,0.00019178,2]
[335545539,1724319050370,-500.0,0.00019178,2]
[335545541,1724319050380,-500.0,0.00019178,2]
[335545543,1724319050390,-500.0,0.00019178,2]
[335545545,1724319050399,-500.0,0.00019178,2]
[335545547,1724319050408,-1054.96,0.00019178,2]
[335545549,1724319050419,-154.596156,0.00019178,2]
[335545551,1724319050429,-500.0,0.00019178,2]
[335545553,1724319050439,-500.0,0.00019178,2]
[335545555,1724319050448,-500.0,0.00019178,2]
[335545557,1724319050457,-500.0,0.00019178,2]
[335545559,1724319050466,-758.28,0.00019178,2]
[335545561,1724319050475,-758.28,0.00019178,2]
[335545563,1724319050484,-758.28,0.00019178,2]
[335545565,1724319050493,-758.28,0.00019178,2]
[335545567,1724319050502,-758.28,0.00019178,2]
[335545569,1724319050511,-758.28,0.00019178,2]
[335545571,1724319050521,-758.28,0.00019178,2]
[335545573,1724319050530,-758.28,0.00019178,2]
[335545575,1724319050539,-758.28,0.00019178,2]
[335545577,1724319050548,-508.02996767,0.00019178,2]
[335545579,1724319050557,-758.28,0.00019178,2]
[335545581,1724319050566,-758.28,0.00019178,2]
[335545583,1724319050575,-758.28,0.00019178,2]
[335545585,1724319050584,-758.28,0.00019178,2]
[335545587,1724319050593,-758.28,0.00019178,2]
[335545589,1724319050603,-758.28,0.00019178,2]
[335545591,1724319050612,-551.02001071,0.00019178,2]
[335547996,1724319130050,273.37336231,9.907e-05,2]
[335548014,1724319669061,5000.0,0.00016555,30]
[335548016,1724319725127,5907.75683678,0.00015,6]
[335548020,1724319809358,2596.46414643,9.899e-05,2]
[335548022,1724319820936,188.6196501,9.899e-05,2]
[335548024,1724319894533,8844.39705201,9.524e-05,2]
[335548025,1724319899966,7013.41255393,9.524e-05,2]
[335548026,1724319933930,283.95148184,9.899e-05,2]
[335548027,1724319949947,2166.4854483,9.899e-05,2]
[335548028,1724319962564,695.0473098,9.899e-05,2]
[335548029,1724319992567,695.0473098,9.899e-05,2]
[335548031,1724320015242,174.72672334,9.899e-05,2]
[335548033,1724320052050,164.43399799,9.899e-05,2]
[335548034,1724320053150,284.76635273,9.899e-05,2]
[335548035,1724320069631,217.1722967,9.899e-05,2]
[335548036,1724320077665,224.26699925,9.899e-05,2]
[335548037,1724320085262,24870.0,9.332e-05,2]
[335548042,1724320123864,232.00032622,9.899e-05,2]
[335548044,1724320163372,688.74575077,9.899e-05,2]
[335548638,1724320237977,-300.0,0.00010958,2]
[335548640,1724320237987,-300.0,0.00010958,2]
[335548642,1724320238002,-411.74,0.00010959,2]
[335548644,1724320238012,-343.12,0.00010959,2]
[335548646,1724320238022,-285.93,0.00010959,2]
[335548649,1724320238032,-238.28,0.00010959,2]
[335548650,1724320238042,-198.56,0.00010959,2]
[335548652,1724320238053,-228.06,0.00010959,2]
[335548654,1724320238063,-190.05,0.00010959,2]
[335548657,1724320238074,-158.37,0.00010959,2]
[335548659,1724320238083,-791.9,0.00010959,2]
[335548661,1724320238093,-1834.86743299,0.00011731,2]
[335548663,1724320238104,-695.0473098,0.00011894,2]
[335548665,1724320238114,-695.0473098,0.00011894,2]
[335548667,1724320238124,-1657.30082509,0.00012008,2]
[335548669,1724320238134,-420.0,0.00012042,2]
[335548671,1724320238144,-420.0,0.00012054,2]
[335548673,1724320238154,-250.0,0.00012425,2]
[335548675,1724320238163,-250.0,0.00012459,2]
[335548677,1724320238173,-250.0,0.00012493,2]
[335548679,1724320238183,-250.0,0.00012527,2]
[335548681,1724320238194,-250.0,0.00012561,2]
[335548683,1724320238204,-250.0,0.00012595,2]
[335548685,1724320238214,-250.0,0.00012629,2]
[335548687,1724320238224,-250.0,0.00012664,2]
[335548689,1724320238233,-250.0,0.00012698,2]
[335548691,1724320238243,-250.0,0.00012732,2]
[335548693,1724320238253,-250.0,0.00012766,2]
[335548695,1724320238262,-250.0,0.000128,2]
[335548697,1724320238272,-250.0,0.00012834,2]
[335548699,1724320238281,-250.0,0.00012868,2]
[335548701,1724320238291,-250.0,0.00012902,2]
[335548703,1724320238302,-250.0,0.00012936,2]
[335548704,1724320238312,-493.25215365,0.0001295,2]
[335548705,1724320238322,-250.0,0.0001297,2]
[335548706,1724320238332,-419.77623496,0.00013,2]
[335548707,1724320238342,-250.0,0.00013004,2]
[335548708,1724320238351,-250.0,0.00013038,2]
[335548709,1724320238361,-162.2041754,0.00013054,2]
[335548710,1724320238371,-250.0,0.00013073,2]
[335548711,1724320238380,-2596.46414643,0.00013597,2]
[335548712,1724320238391,-188.6196501,0.00013688,2]
[335548713,1724320238401,-215.207306,0.00013699,2]
[335548714,1724320238413,-184.413512,0.00014247,2]
[335548715,1724320238423,-441.357295,0.00014247,2]
[335548716,1724320238433,-782.84735433,0.00015,2]
[335548717,1724320238443,-154.77557542,0.00015,2]
[335548718,1724320238453,-1672.36760276,0.00015,2]
[335548719,1724320238464,-998.60195726,0.0001597,2]
[335548720,1724320238474,-5299.87271954,0.00017082,2]
[335548721,1724320238487,-3190.99674697,0.00017434,2]
[335548722,1724320238497,-5299.87271954,0.00017519,2]
[335548723,1724320238507,-997.64976914,0.00017573,2]
[335548724,1724320238517,-5299.87271954,0.00017575,2]
[335548725,1724320238526,-309.46839227,0.00017754,2]
[335548726,1724320238536,-793.09201492,0.00017863,2]
[335548728,1724320238547,-5299.87271954,0.00017874,2]
[335548730,1724320238556,-154.77557542,0.00018,2]
[335548732,1724320238566,-2500.0,0.00018,2]
[335548734,1724320238576,-500.0,0.00018046,2]
[335548736,1724320238591,-2000.0,0.00018047,2]
[335548738,1724320238606,-1549.07947407,0.00018049,2]
[335548740,1724320238616,-2063.27204595,0.00018073,2]
[335548742,1724320238625,-5299.87271954,0.00018118,2]
[335548744,1724320238635,-281265.657719,0.00018137,2]
[335548746,1724320238647,-369.91551788,0.00018138,2]
[335548748,1724320238656,-500.0,0.00018138,2]
[335548750,1724320238666,-500.0,0.00018138,2]
[335548752,1724320238677,-238.5246449,0.00018138,2]
[335548754,1724320238687,-402.09054706,0.00018138,2]
[335548756,1724320238697,-500.0,0.00018138,2]
[335548758,1724320238707,-500.0,0.00018138,2]
[335548760,1724320238717,-500.0,0.00018138,2]
[335548762,1724320238727,-500.0,0.00018138,2]
[335548764,1724320238737,-500.0,0.00018138,2]
[335548766,1724320238746,-500.0,0.00018138,2]
[335548768,1724320238757,-500.0,0.00018138,2]
[335548770,1724320238767,-70316.4144298,0.00018139,2]
[335548772,1724320238777,-186560.091524,0.00018147,2]
[335548774,1724320238787,-502.50076074,0.00018173,2]
[335548776,1724320238797,-150.112233,0.000183,2]
[335548778,1724320238807,-1460.32283913,0.00018306,2]
[335548781,1724320238820,-88.75663494,0.00018306,2]
[335548783,1724320238830,-207.6636928,0.00018356,2]
[335548785,1724320238841,-207.6636928,0.00018356,2]
[335548787,1724320238851,-5299.87271954,0.00018359,2]
[335548789,1724320238862,-150.0,0.00018369,2]
[335548791,1724320238872,-150.112233,0.000184,2]
[335548793,1724320238882,-150.112233,0.000185,2]
[335548795,1724320238892,-441.00352,0.00018521,2]
[335548797,1724320238902,-277.72945572,0.00018559,2]
[335548799,1724320238912,-790.70834855,0.00018564,2]
[335548803,1724320238936,-758.37112552,0.00018564,2]
[335548805,1724320238950,-150.112233,0.000186,2]
[335548807,1724320238961,-207.6636928,0.0001863,2]
[335548809,1724320238972,-500.0,0.00018646,2]
[335548812,1724320238983,-4642.12060966,0.00018685,2]
[335548814,1724320239000,-657.75210988,0.00018685,2]
[335548816,1724320239012,-150.0,0.00018712,2]
[335548818,1724320239024,-481.40460075,0.00018756,2]
[335548820,1724320239036,-150.112233,0.000188,2]
[335548823,1724320239049,-1549.07947407,0.00018821,2]
[335548825,1724320239060,-9120.63378367,0.00018868,2]
[335548931,1724320240197,-690.67958184,0.00018868,2]
[335548941,1724320240281,-571.39625741,0.00018868,2]
[335548944,1724320240294,-563.71102058,0.00018868,2]
[335548946,1724320240303,-1000.0,0.00018899,2]
[335548948,1724320240313,-150.112233,0.000189,2]
[335548950,1724320240323,-150.0,0.00018917,2]
[335548952,1724320240334,-5299.87271958,0.00018998,2]
[335548954,1724320240344,-13864.13966765,0.00019,2]
[335548956,1724320240354,-150.112233,0.00019,2]
[335548958,1724320240364,-31056.53897034,0.00019012,2]
[335549517,1724320825170,695.0473098,9.899e-05,2]
[335549518,1724320835118,695.0473098,9.899e-05,2]
[335549520,1724321014611,810.99895401,9.899e-05,2]
[335549522,1724321060469,534.91146023,9.899e-05,2]
[335549523,1724321102703,628.25583744,9.899e-05,2]
[335549525,1724321133287,642.22073,9.899e-05,2]
[335549535,1724321432082,-695.0473098,0.00010544,2]
[335549537,1724321432094,-19.68758598,0.000106,2]
[335549547,1724321432183,-480.31241402,0.000106,2]
[335549549,1724321432194,-266.73954726,0.000106,2]
[335549552,1724321432216,-810.32746941,0.00010958,2]
[335549554,1724321432228,-1828.32100546,0.00010958,2]
[335549556,1724321432240,-188.43039442,0.00011712,2]
[335549559,1724321432258,-218.918168,0.00014184,2]
[335549561,1724321432271,-159.316627,0.00014247,2]
[335549564,1724321432283,-419.28943,0.00014247,2]
[335549566,1724321432293,-172.09828,0.00014298,2]
[335549568,1724321432304,-852.8410323,0.00014464,2]
[335549570,1724321432315,-172.09828,0.00014546,2]
[335549572,1724321432326,-172.09828,0.00014794,2]
[335549573,1724321432336,-172.09828,0.00015043,2]
[335549574,1724321432347,-277.72945572,0.00017267,2]
[335549575,1724321432358,-207.6636928,0.00017756,2]
[335549576,1724321432373,-207.6636928,0.00017778,2]
[335549577,1724321432385,-414.8793431,0.00017808,2]
[335549578,1724321432396,-300.0,0.00017999,2]
[335549579,1724321432408,-154.77557542,0.00018,2]
[335549580,1724321432421,-1000.0,0.00018,18]
[335549581,1724321432432,-5568.86015022,0.00018037,2]
[335549590,1724321438227,-277.72945572,0.00017259,2]
[335549591,1724321438237,-7093.47654633,0.00018037,2]
[335549592,1724321438263,-468.783389,0.00018037,2]
[335549593,1724321438276,-19665.09622633,0.00018037,2]
[335549594,1724321438290,-3169.34334981,0.00018037,2]
[335549595,1724321438301,-25190.84583675,0.00018037,2]
[335549596,1724321438311,-2792.12215359,0.00018307,2]
[335549597,1724321438321,-2000.0,0.00018407,2]
[335549598,1724321438331,-408.9517048,0.00018438,2]
[335549599,1724321438340,-500.0,0.00018506,2]
[335549600,1724321438350,-500.0,0.00018506,2]
[335549601,1724321438359,-500.0,0.00018506,2]
[335549602,1724321438369,-500.0,0.00018506,2]
[335549603,1724321438383,-500.0,0.00018506,2]
[335549604,1724321438393,-500.0,0.00018506,2]
[335549605,1724321438403,-500.0,0.00018506,2]
[335549606,1724321438412,-500.0,0.00018506,2]
[335549607,1724321438422,-500.0,0.00018506,2]
[335549608,1724321438432,-500.0,0.00018506,2]
[335549609,1724321438441,-500.0,0.00018506,2]
[335549610,1724321438452,-500.0,0.00018506,2]
[335549611,1724321438462,-500.0,0.00018506,2]
[335549612,1724321438472,-500.0,0.00018506,2]
[335549613,1724321438481,-500.0,0.00018506,2]
[335549614,1724321438491,-500.0,0.00018506,2]
[335549615,1724321438500,-500.0,0.00018506,2]
[335549616,1724321438510,-500.0,0.00018506,2]
[335549617,1724321438519,-174.10224921,0.00018506,2]
[335549618,1724321438528,-500.0,0.00018506,2]
[335549619,1724321438537,-500.0,0.00018506,2]